bitfinex/quotes_SOLUSD_20260114
["timestamp","ask_amount","ask_price","bid_price","bid_amount"]
[1768407716914,0.82191491,148.28,148.25,3.82795804]
[1768407717422,0.82191491,148.28,148.24,0.67736283]
[1768407717423,7.56607856,148.28,148.24,0.67736283]
[1768407717599,7.56607856,148.28,148.25,3.82795804]
[1768407718020,24.42607316,148.28,148.24,4.50532087]
[1768407718203,24.42607316,148.28,148.24,3.82795804]
[1768407718696,24.42607316,148.28,148.23,4.50532087]
[1768407718916,24.42607316,148.28,148.24,3.76795804]
[1768407719295,24.42607316,148.28,148.24,3.70795804]
[1768407719696,24.42607316,148.28,148.24,3.82795804]
[1768407719995,24.42607316,148.28,148.23,4.50532087]
[1768407720714,24.42607316,148.28,148.23,0.67736283]
[1768407720927,0.72191491,148.26,148.21,0.67736283]
[1768407721128,0.72191491,148.25,148.21,4.50532087]
[1768407721507,24.42607316,148.28,148.21,0.67736283]
[1768407721807,3.82795804,148.27,148.22,0.67736283]
[1768407722614,0.72191491,148.26,148.22,0.67736283]
[1768407723000,6.74536256,148.25,148.22,0.67736283]
[1768407724223,23.60876896,148.25,148.22,0.67736283]
[1768407724920,0.72191491,148.24,148.18,4.50532087]
[1768407725127,0.72191491,148.22,148.18,0.67736283]
[1768407726197,13.02191491,148.22,148.16,4.50532087]
[1768407726398,12.3,148.23,148.19,0.67736283]
[1768407727202,19.04670881,148.23,148.19,0.67736283]
[1768407727620,6.74670881,148.23,148.19,0.67736283]
[1768407727826,19.04670881,148.23,148.19,0.67736283]
[1768407728520,6.74670881,148.23,148.19,0.67736283]
[1768407728727,19.04670881,148.23,148.19,0.67736283]
[1768407729222,22.87466685,148.23,148.19,0.67736283]
[1768407729438,4.54987295,148.22,148.17,0.67736283]
[1768407729640,0.1,148.19,148.17,0.67736283]
[1768407729807,12.3,148.22,148.19,0.67736283]
[1768407730322,16.12795804,148.22,148.19,0.67736283]
[1768407730503,12.3,148.22,148.19,0.67736283]
[1768407731333,7.46909796,148.21,148.17,0.67736283]
[1768407731629,11.297056,148.21,148.15,4.50532087]
[1768407731805,11.297056,148.21,148.16,0.67736283]
[1768407732001,11.297056,148.21,148.14,10.57795047]
[1768407732002,0.72191491,148.19,148.14,0.67736283]
[1768407732207,0.72191491,148.19,148.15,0.67736283]
[1768407732711,13.02191491,148.19,148.15,0.67736283]
[1768407732913,16.84987295,148.19,148.15,0.67736283]
[1768407733313,0.72191491,148.17,148.11,0.67736283]
[1768407733726,0.72191491,148.17,148.12,0.67736283]
[1768407733727,12.3,148.16,148.12,0.67736283]
[1768407734029,16.84987295,148.17,148.12,0.67736283]
[1768407734220,13.02191491,148.17,148.13,0.67736283]
[1768407734534,4.54987295,148.16,148.11,0.67736283]
[1768407735028,0.72191491,148.16,148.11,0.67736283]
[1768407735218,28.17005326,148.18,148.12,0.67736283]
[1768407735534,12.3,148.16,148.13,3.82795804]
[1768407735834,19.77145952,148.16,148.12,4.50532087]
[1768407736333,7.47145952,148.16,148.12,0.67736283]
[1768407736537,7.47145952,148.16,148.12,4.50532087]
[1768407736719,12.3,148.15,148.12,0.67736283]
[1768407737033,12.3,148.17,148.14,4.50532087]
[1768407737217,12.3,148.17,148.15,3.82795804]
[1768407737412,19.0490766,148.17,148.15,3.82795804]
[1768407737615,6.7490766,148.17,148.13,0.67736283]
[1768407737916,19.77099151,148.17,148.13,3.82795804]
[1768407738122,0.72191491,148.16,148.13,3.82795804]
[1768407738632,0.72191491,148.16,148.11,0.67736283]
[1768407738829,0.72191491,148.16,148.11,4.50532087]
[1768407739409,17.59256556,148.19,148.15,3.82795804]
[1768407739615,13.04191491,148.18,148.14,4.50532087]
[1768407739917,0.72191491,148.17,148.15,3.82795804]
[1768407740233,0.72191491,148.17,148.13,0.67736283]
[1768407740416,0.72191491,148.17,148.13,3.82795804]
[1768407740738,0.72191491,148.17,148.12,4.50532087]
[1768407740941,0.72191491,148.17,148.13,3.82795804]
[1768407741310,19.79231445,148.16,148.13,2.44875676]
[1768407741515,19.79231445,148.16,148.12,3.12611959]
[1768407741729,19.79231445,148.16,148.13,2.44875676]
[1768407742035,7.47231445,148.16,148.13,2.44875676]
[1768407742233,13.04263882,148.15,148.12,2.44875676]
[1768407742426,13.01263883,148.15,148.11,0.67264335]
[1768407742627,13.01263883,148.15,148.12,2.44875676]
[1768407743341,13.01263883,148.15,148.13,2.44875676]
[1768407743516,12.32,148.15,148.13,2.44875676]
[1768407745040,12.32,148.15,148.12,0.67264335]
[1768407745233,12.32,148.15,148.13,2.44875676]
[1768407745444,13.04263882,148.15,148.12,2.44875676]
[1768407745732,19.79257186,148.15,148.11,3.12140011]
[1768407746725,0.72263882,148.13,148.09,0.67264335]
[1768407746924,0.72263882,148.13,148.1,2.44875676]
[1768407747642,0.72263882,148.13,148.09,3.12140011]
[1768407747940,0.72263882,148.13,148.09,0.67264335]
[1768407748114,0.72263882,148.13,148.09,7.4251602]
[1768407748314,0.72263882,148.16,148.11,7.42421399]
[1768407748536,13.04263882,148.15,148.12,2.44875676]
[1768407748733,13.04263882,148.15,148.11,7.42421399]
[1768407749024,0.72263882,148.14,148.1,6.75205175]
[1768407749225,0.72263882,148.14,148.11,2.44875676]
[1768407750539,19.79257064,148.15,148.11,3.12140011]
[1768407750839,7.47257064,148.15,148.11,3.12140011]
[1768407751025,12.32,148.14,148.11,3.12140011]
[1768407751343,12.32,148.15,148.12,3.12140011]
[1768407752547,12.32,148.15,148.12,9.87265313]
[1768407753436,12.32,148.15,148.12,3.12140011]
[1768407753635,19.0699406,148.15,148.12,3.12140011]
[1768407753834,19.79257942,148.15,148.1,0.67264335]
[1768407754030,19.79257942,148.15,148.11,3.12140011]
[1768407754350,36.66736848,148.15,148.11,0.67264335]
[1768407755152,0.72263882,148.14,148.1,3.12140011]
[1768407755652,7.47311664,148.14,148.1,0.67264335]
[1768407755851,7.47311664,148.14,148.1,3.12140011]
[1768407756229,7.47311664,148.14,148.1,0.67264335]
[1768407757944,0.72263882,148.13,148.1,0.67264335]
[1768407758357,12.32,148.12,148.1,0.67264335]
[1768407758737,12.32,148.12,148.08,6.75297178]
[1768407758738,12.32,148.12,148.08,0.67264335]
[1768407758933,19.79406191,148.12,148.08,0.67264335]
[1768407759453,19.79406191,148.12,148.08,3.12140011]
[1768407760463,19.79406191,148.12,148.08,0.67264335]
[1768407760962,3.17139558,148.1,148.05,0.67264335]
[1768407761262,12.32,148.09,148.06,0.67264335]
[1768407761465,12.32,148.09,148.06,3.12140011]
[1768407761766,12.32,148.09,148.06,0.67264335]
[1768407761956,12.32,148.09,148.06,3.12140011]
[1768407762158,12.32,148.09,148.06,0.67264335]
[1768407762544,19.07273999,148.09,148.06,0.67264335]
[1768407762751,19.79537881,148.09,148.05,3.12140011]
[1768407762960,7.47537881,148.09,148.05,0.67264335]
[1768407763141,12.32,148.08,148.05,3.12140011]
[1768407763462,12.32,148.08,148.05,0.67264335]
[1768407763658,13.04263882,148.08,148.03,0.67264335]
[1768407763968,13.04263882,148.08,148.03,9.87662968]
[1768407764152,19.79592506,148.08,148.04,0.67264335]
[1768407764461,0.72263882,148.07,148.01,0.2]
[1768407764768,0.69263883,148.07,148.03,0.67264335]
[1768407765363,19.07328624,148.08,148.04,0.67264335]
[1768407765546,6.75328624,148.08,148.05,0.67264335]
[1768407765748,12.32,148.07,148.05,0.67264335]
[1768407765952,12.32,148.07,148.04,3.12140011]
[1768407766153,12.32,148.07,148.04,0.67264335]
[1768407766352,19.07362913,148.07,148.04,0.67264335]
[1768407767150,7.47544157,148.09,148.05,0.67264335]
[1768407767462,12.32,148.08,148.05,0.67264335]
[1768407768145,12.32,148.09,148.06,3.12140011]
[1768407769064,12.32,148.09,148.07,0.67264335]
[1768407769669,6.75222358,148.1,148.07,0.67264335]
[1768407769965,12.32,148.09,148.07,0.67264335]
[1768407770648,19.07266422,148.09,148.06,0.69127944]
[1768407770853,6.75266422,148.09,148.06,0.69127944]
[1768407771055,19.75594151,148.09,148.05,2.44875676]
[1768407771267,0.68327729,148.08,148.04,9.89485006]
[1768407771943,19.07266422,148.09,148.05,0.69127944]
[1768407772148,0.68327729,148.08,148.04,9.20357062]
[1768407772468,7.43640541,148.08,148.04,0.69127944]
[1768407773350,0.68327729,148.07,148.02,6.75572743]
[1768407773551,13.00327729,148.06,148.03,9.2041234]
[1768407773770,13.00327729,148.06,148.03,6.75536664]
[1768407773969,13.00327729,148.06,148.02,2.44875676]
[1768407774470,13.00327729,148.06,148.02,3.1400362]
[1768407774850,13.00327729,148.06,148.02,0.69127944]
[1768407775049,13.00327729,148.06,148.03,2.44875676]
[1768407775264,13.00327729,148.06,148.02,0.69127944]
[1768407775472,12.32,148.06,148.03,3.1400362]
[1768407775851,12.32,148.06,148.04,0.69127944]
[1768407776163,12.32,148.07,148.04,0.69127944]
[1768407776357,12.32,148.07,148.04,3.1400362]
[1768407776555,12.32,148.07,148.04,0.69127944]
[1768407776869,12.32,148.07,148.05,0.69127944]
[1768407777364,12.32,148.07,148.03,0.69127944]
[1768407777565,12.32,148.07,148.03,3.1400362]
[1768407777776,7.43642352,148.08,148.03,3.1400362]
[1768407778071,12.32,148.07,148.03,3.1400362]
[1768407778866,12.32,148.07,148.04,0.69127944]
[1768407779373,7.43642352,148.08,148.04,0.69127944]
[1768407779562,12.32,148.07,148.04,3.1400362]
[1768407779765,12.32,148.07,148.04,0.69127944]
[1768407780072,13.00327729,148.07,148.03,7.44649506]
[1768407780269,19.7568655,148.07,148.03,9.89525182]
[1768407780465,19.7568655,148.07,148.04,2.44875676]
[1768407780859,13.00327729,148.07,148.04,2.44875676]
[1768407781177,13.00327729,148.07,148.03,9.89525182]
[1768407781776,0.68327729,148.08,148.04,9.89488231]
[1768407781960,0.68327729,148.08,148.05,3.1400362]
[1768407782165,12.32,148.08,148.05,0.69127944]
[1768407782768,0.68327729,148.07,148.01,0.2]
[1768407783089,0.68327729,148.06,148.01,10.09630141]
[1768407783585,12.32,148.05,148.01,10.09630141]
[1768407783887,13.00327729,148.05,148.01,10.09630141]
[1768407784583,13.00327729,148.05,148.02,6.75578363]
[1768407784876,13.00327729,148.05,148.02,9.20454039]
[1768407785084,13.00327729,148.05,148.02,6.75578363]
[1768407785295,13.00327729,148.05,148.01,10.0962238]
[1768407785573,13.00327729,148.05,148.01,7.64746704]
[1768407785782,13.00327729,148.05,148.01,10.0962238]
[1768407785960,12.32,148.05,148.03,0.69127944]
[1768407786671,12.32,148.05,148.02,9.20448271]
[1768407786973,12.32,148.05,148.02,6.75572595]
[1768407787180,0.68327729,148.06,148.02,9.89576215]
[1768407787383,13.00327729,148.06,148.02,7.44700539]
[1768407787561,19.75731152,148.06,148.02,0.69127944]
[1768407787764,13.00327729,148.06,148.02,9.89582443]
[1768407788986,0.68327729,148.05,148.02,9.89582443]
[1768407789282,0.68327729,148.05,148.02,6.75578823]
[1768407789586,0.68327729,148.05,148.01,7.64741854]
[1768407789782,0.68327729,148.05,148.01,0.2]
[1768407791188,0.68327729,148.05,148.01,9.40505446]
[1768407791774,0.68327729,148.05,148.01,10.0963339]
[1768407792281,0.68327729,148.05,148.01,7.64757714]
[1768407792495,7.43789969,148.05,148.01,0.89127944]
[1768407792699,0.68327729,148.04,148.01,6.95625479]
[1768407793376,0.68327729,148.04,148.01,9.40501155]
[1768407793692,0.68327729,148.04,148.01,6.95625479]
[1768407793899,0.68327729,148.03,148.01,0.2]
[1768407794070,0.68327729,148.03,147.98,7.64864814]
[1768407794267,12.95519643,148.02,147.98,0.89127944]
[1768407794465,0.68279648,148.01,147.98,0.2]
[1768407795290,0.63567243,148.0,147.98,0.2]
[1768407795598,0.63567243,148.0,147.95,3.1400362]
[1768407795900,0.68327729,147.98,147.94,0.2]
[1768407796188,0.68327729,147.98,147.94,0.89127944]
[1768407796990,0.68327729,147.98,147.94,0.2]
[1768407797167,14.76875676,147.99,147.92,0.2]
[1768407797168,7.19652809,147.95,147.92,0.2]
[1768407797367,0.43719643,147.95,147.92,0.2]
[1768407797573,12.32,147.94,147.92,0.2]
[1768407797772,12.29000001,147.94,147.92,3.3400362]
[1768407799281,19.51411982,148.0,147.94,3.1400362]
[1768407799470,0.68081648,147.99,147.94,3.1400362]
[1768407800266,0.43963263,147.98,147.94,0.69127944]
[1768407800688,12.32,147.97,147.94,0.69127944]
[1768407801194,19.75691436,147.97,147.92,10.10159708]
[1768407801390,19.75691436,147.97,147.92,4.72898622]
[1768407801590,19.75691436,147.97,147.92,0.892454]
[1768407801799,6.75850972,147.97,147.93,4.52898622]
[1768407801986,0.70707401,147.98,147.94,0.692454]
[1768407802194,12.32,147.97,147.94,0.692454]
[1768407802678,12.32,147.97,147.92,7.65273822]
[1768407802993,12.32,147.97,147.93,4.52898622]
[1768407803297,19.07813032,147.97,147.93,0.692454]
[1768407803496,19.07813032,147.97,147.93,4.52898622]
[1768407803687,19.491768,147.97,147.92,4.03653222]
[1768407803883,19.491768,147.97,147.92,0.2]
[1768407804074,19.491768,147.97,147.92,4.03653222]
[1768407804696,7.46288577,147.96,147.92,0.2]
[1768407804897,0.70126367,147.94,147.91,3.67290541]
[1768407805095,12.92126367,147.93,147.89,0.2]
[1768407805284,16.75779589,147.93,147.89,0.2]
[1768407805487,0.099,147.92,147.89,0.2]
[1768407805801,3.93553222,147.92,147.89,0.2]
[1768407806795,6.76086809,147.91,147.89,0.2]
[1768407806986,12.32,147.9,147.87,0.892454]
[1768407807188,6.85957973,147.92,147.87,11.49130528]
[1768407807504,12.32,147.91,147.87,11.49130528]
[1768407807800,12.32,147.91,147.88,4.52898622]
[1768407807998,12.32,147.91,147.88,0.692454]
[1768407808193,12.32,147.91,147.87,0.892454]
[1768407808394,16.26050463,147.91,147.87,0.2]
[1768407808602,0.59131834,147.9,147.87,0.2]
[1768407808797,12.32,147.9,147.87,0.2]
[1768407808999,12.32,147.9,147.87,4.03653222]
[1768407809494,0.60126367,147.97,147.9,0.692454]
[1768407809701,12.419,147.96,147.92,3.83653222]
[1768407809914,12.32,147.95,147.92,3.83653222]
[1768407810489,12.32,147.94,147.92,0.692454]
[1768407810803,12.32,147.94,147.92,4.52898622]
[1768407810976,0.099,148.01,147.94,0.692454]
[1768407811182,12.32,148.0,147.98,3.83653222]
[1768407811501,12.32,148.0,147.97,0.692454]
[1768407811502,12.32,147.99,147.95,0.692454]
[1768407811705,12.32,147.99,147.96,0.692454]
[1768407812002,12.32,148.01,147.98,3.83653222]
[1768407812201,0.099,148.02,147.98,3.83653222]
[1768407812401,6.75538742,148.03,147.98,4.52898622]
[1768407812699,12.32,148.02,147.98,7.4499359]
[1768407813002,12.32,148.02,147.98,11.28646812]
[1768407814587,12.32,148.02,147.98,0.692454]
[1768407814790,0.10397241,148.01,147.96,0.692454]
[1768407814988,0.10397241,148.01,147.96,4.52898622]
[1768407815188,0.10397241,148.01,147.96,0.692454]
[1768407815396,3.94050463,148.01,147.96,0.692454]
[1768407816081,10.69723349,148.01,147.96,0.692454]
[1768407816707,0.59131834,148.0,147.96,0.692454]
[1768407816903,6.75672886,148.01,147.96,0.692454]
[1768407817108,10.59326108,148.01,147.96,0.692454]
[1768407817312,10.69226108,148.01,147.96,0.692454]
[1768407817610,6.85572886,148.01,147.96,4.52898622]
[1768407818709,10.69226108,148.01,147.96,0.692454]
[1768407819082,10.69226108,148.01,147.92,4.52898622]
[1768407819083,0.10884587,147.97,147.92,4.52898622]
[1768407819316,12.32,147.96,147.92,0.692454]
[1768407819491,16.15653222,147.96,147.9,0.692454]
[1768407819690,16.15653222,147.96,147.9,4.52898622]
[1768407820107,3.83653222,147.95,147.9,0.692454]
[1768407820293,16.15653222,147.96,147.9,4.52898622]
[1768407820813,16.12653223,147.96,147.9,11.2902262]
[1768407821187,6.75904021,147.95,147.9,11.2902262]
[1768407821400,6.85804021,147.95,147.9,0.692454]
[1768407821600,6.85804021,147.95,147.9,4.52898622]
[1768407821893,6.85804021,147.95,147.9,11.29021269]
[1768407822389,12.32,147.94,147.91,4.52898622]
[1768407822694,0.57126368,147.99,147.94,0.692454]
[1768407822900,12.32,147.98,147.94,4.52898622]
[1768407823210,12.32,147.98,147.94,0.692454]
[1768407823387,19.07773739,147.98,147.94,4.52898622]
[1768407823591,19.07773739,147.98,147.94,0.692454]
[1768407823912,12.32,147.97,147.94,0.692454]
[1768407824295,12.32,147.97,147.92,11.28923065]
[1768407824498,12.88654104,147.97,147.92,0.692454]
[1768407824704,12.88654104,147.97,147.92,4.52898622]
[1768407824900,0.56191238,147.95,147.9,4.52898622]
[1768407825210,0.55737584,147.93,147.88,0.692454]
[1768407825416,12.32,147.92,147.88,11.29106171]
[1768407826519,12.32,147.92,147.88,0.692454]
[1768407826905,12.32,147.92,147.88,4.52898622]
[1768407827517,12.32,147.92,147.88,11.29121496]
[1768407827716,4.4077959,147.95,147.9,0.692454]
[1768407827911,12.32,147.94,147.91,0.692454]
[1768407828109,12.32,147.94,147.91,4.52898622]
[1768407828306,12.32,147.94,147.89,0.692454]
[1768407828512,12.34,147.93,147.9,0.692454]
[1768407828699,12.34,147.93,147.9,4.52898622]
[1768407829223,12.34,147.93,147.9,11.29002852]
[1768407829922,12.34,147.93,147.9,7.4534963]
[1768407830111,12.34,147.93,147.9,11.29002852]
[1768407830424,12.34,147.93,147.9,10.59757452]
[1768407830597,19.20372457,147.93,147.89,0.692454]
[1768407830794,19.20372457,147.93,147.89,4.52898622]
[1768407831012,19.20372457,147.93,147.88,10.59858317]
[1768407831216,19.20372457,147.93,147.89,3.83653222]
[1768407831809,19.20372457,147.93,147.88,11.30849188]
[1768407832119,19.10004916,147.93,147.89,0.70990871]
[1768407832735,19.10004916,147.93,147.89,7.47168653]
[1768407833311,12.34,147.92,147.89,11.30821875]
[1768407833711,12.34,147.91,147.89,11.30821875]
[1768407835620,12.34,147.91,147.89,0.70990871]
[1768407836001,12.34,147.91,147.87,7.67260535]
[1768407836002,19.66283089,147.91,147.87,7.67260535]
[1768407836198,19.66283089,147.91,147.87,11.50913757]
[1768407838017,12.31000001,147.87,147.84,0.70990871]
[1768407838325,12.31000001,147.87,147.83,10.60095136]
[1768407838748,12.31000001,147.87,147.8,0.70990871]
[1768407838749,0.54857179,147.85,147.8,0.70990871]
[1768407838907,12.34,147.84,147.8,11.31219597]
[1768407839108,12.34,147.84,147.8,7.47566375]
[1768407839307,12.34,147.84,147.81,4.54644093]
[1768407839509,12.34,147.84,147.81,11.31181366]
[1768407839734,12.34,147.84,147.81,7.47528144]
[1768407840057,6.86241716,147.86,147.81,7.47528144]
[1768407840233,12.34,147.85,147.81,7.47528144]
[1768407840539,12.34,147.85,147.81,11.31181366]
[1768407840734,12.34,147.85,147.81,4.54644093]
[1768407840910,12.34,147.85,147.81,11.31185907]
[1768407841541,12.34,147.84,147.81,11.31185907]
[1768407841729,12.34,147.84,147.81,7.47532685]
[1768407841933,7.33021043,147.85,147.8,6.76572293]
[1768407842222,12.34,147.83,147.79,0.70990871]
[1768407842422,12.34,147.83,147.79,4.54644093]
[1768407842628,12.34,147.83,147.78,6.76670508]
[1768407842629,0.57126368,147.85,147.8,4.54644093]
[1768407842815,12.34,147.82,147.8,0.70990871]
[1768407843016,12.31000001,147.82,147.8,0.70990871]
[1768407843314,12.31000001,147.82,147.79,10.60286685]
[1768407843315,6.76364185,147.85,147.81,4.54644093]
[1768407843619,12.34,147.84,147.81,0.70990871]
[1768407844217,19.67072717,147.84,147.8,3.83653222]
[1768407844422,0.10367541,147.83,147.79,10.60286911]
[1768407845023,0.10367541,147.83,147.77,2.07501239]
[1768407845024,0.56191238,147.82,147.77,2.07501239]
[1768407845226,0.55737584,147.8,147.77,2.07501239]
[1768407845626,0.55737584,147.8,147.75,0.70990871]
[1768407845627,6.76635766,147.79,147.75,0.70990871]
[1768407845833,12.34,147.78,147.75,0.70990871]
[1768407846013,12.31000001,147.78,147.75,0.70990871]
[1768407846211,12.28000002,147.78,147.75,0.70990871]
[1768407846411,3.95368298,147.77,147.74,0.2]
[1768407846620,0.08715077,147.77,147.74,0.2]
[1768407848036,6.85442423,147.77,147.74,0.2]
[1768407848440,12.34,147.76,147.74,0.2]
[1768407848614,10.20725146,147.76,147.71,0.70990871]
[1768407848818,12.34,147.75,147.72,17.68643077]
[1768407849019,12.34,147.75,147.72,0.70990871]
[1768407849830,16.91613984,147.79,147.72,0.70990871]
[1768407849831,0.099,147.78,147.73,7.47899359]
[1768407850029,12.34,147.77,147.73,0.70990871]
[1768407850846,0.53250642,147.75,147.69,0.70990871]
[1768407851054,12.34,147.74,147.7,10.91716017]
[1768407851657,12.34,147.74,147.7,0.70990871]
[1768407851958,19.10890366,147.74,147.7,0.70990871]
[1768407852250,0.10766969,147.73,147.68,17.68844969]
[1768407853131,0.10766969,147.73,147.69,6.77070215]
[1768407853326,12.34,147.72,147.7,7.48038274]
[1768407853518,12.34,147.71,147.7,0.70990871]
[1768407853849,12.28000002,147.71,147.69,0.70990871]
[1768407855037,12.28000002,147.71,147.69,10.91716017]
[1768407855543,12.28000002,147.71,147.69,0.70990871]
[1768407855942,19.05025588,147.71,147.68,10.91716017]
[1768407856325,12.28000002,147.71,147.68,0.70990871]
[1768407856524,19.05004466,147.71,147.68,10.91716017]
[1768407856842,12.28000002,147.71,147.68,10.91716017]
[1768407857045,12.28000002,147.71,147.65,16.93193362]
[1768407857046,46.28582382,147.71,147.65,0.70990871]
[1768407857234,46.28582382,147.71,147.65,10.91716017]
[1768407857235,0.53250642,147.7,147.65,10.91716017]
[1768407857426,0.53250642,147.7,147.65,0.70990871]
[1768407857626,0.10766969,147.69,147.64,0.70990871]
[1768407857820,22.54725146,147.68,147.64,0.70990871]
[1768407858025,12.34,147.68,147.65,0.70990871]
[1768407858850,19.11160836,147.68,147.65,0.70990871]
[1768407859660,19.21498677,147.68,147.62,8.80759221]
[1768407859851,29.42223823,147.68,147.63,0.70990871]
[1768407860029,6.77231477,147.66,147.62,2.03356452]
[1768407860229,12.34,147.65,147.63,0.66702087]
[1768407860631,6.77231477,147.66,147.62,1.99393587]
[1768407860948,6.77231477,147.66,147.62,8.76797797]
[1768407861151,10.20725146,147.68,147.63,0.67028006]
[1768407861447,11.615,147.65,147.64,0.17028006]
[1768407861627,0.65608986,147.68,147.64,0.17028006]
[1768407861829,12.34,147.67,147.64,0.17028006]
[1768407862041,12.34,147.67,147.65,6.77277345]
[1768407862367,12.34,147.67,147.64,6.77305919]
[1768407862765,12.31000001,147.67,147.64,6.77305919]
[1768407862968,12.34,147.67,147.64,6.77305919]
[1768407863266,7.42712469,147.69,147.64,6.77305919]
[1768407863574,12.34,147.68,147.64,7.44333925]
[1768407864090,18.62826924,147.68,147.64,7.44333925]
[1768407864371,25.39967197,147.68,147.64,7.44333925]
[1768407864566,25.39967197,147.68,147.64,0.67028006]
[1768407865550,26.05576183,147.68,147.64,0.67028006]
[1768407865871,13.71576183,147.68,147.64,0.67028006]
[1768407866074,12.34,147.67,147.64,0.67028006]
[1768407866376,18.62826924,147.67,147.64,0.67028006]
[1768407866676,12.34,147.67,147.65,0.67028006]
[1768407866855,12.34,147.67,147.64,6.77319854]
[1768407867055,12.34,147.67,147.62,1.32365581]
[1768407867056,6.9443591,147.66,147.62,1.32365581]
[1768407867263,6.9443591,147.65,147.62,1.32365581]
[1768407867578,12.36,147.64,147.62,1.32365581]
[1768407868753,13.01608986,147.64,147.62,1.32365581]
[1768407868954,19.78933347,147.64,147.62,1.32365581]
[1768407869355,6.77295075,147.65,147.62,1.99393587]
[1768407869559,0.65608986,147.7,147.63,0.67028006]
[1768407869755,3.12242635,147.68,147.63,0.67028006]
[1768407869970,3.09242636,147.68,147.63,0.67028006]
[1768407871169,15.45242636,147.68,147.64,0.67028006]
[1768407871476,2.46633649,147.67,147.64,0.67028006]
[1768407871981,3.12242635,147.67,147.62,1.99393587]
[1768407872484,6.77277345,147.65,147.62,1.99393587]
[1768407872651,6.77277345,147.65,147.62,1.32365581]
[1768407872652,12.36,147.65,147.62,1.32365581]
[1768407872854,9.23862726,147.67,147.63,0.67028006]
[1768407873057,12.36,147.66,147.63,0.67028006]
[1768407874163,0.65608986,147.7,147.63,0.67028006]
[1768407874357,14.82633649,147.69,147.63,0.67028006]
[1768407874557,22.25348748,147.69,147.65,0.67028006]
[1768407874961,9.89348748,147.69,147.65,0.67028006]
[1768407875162,12.36,147.68,147.65,0.67028006]
[1768407875777,12.36,147.68,147.65,7.44302354]
[1768407875978,9.89348748,147.69,147.65,7.44302354]
[1768407876179,12.36,147.68,147.65,0.67028006]
[1768407876882,7.42715099,147.69,147.65,7.44288357]
[1768407877084,9.23657696,147.71,147.66,0.67028006]
[1768407877396,14.82633649,147.72,147.66,0.67028006]
[1768407877689,14.82633649,147.72,147.68,0.67028006]
[1768407877870,22.2521538,147.72,147.68,0.67028006]
[1768407879288,15.48242635,147.72,147.68,7.44166285]
[1768407879792,22.25200882,147.72,147.68,0.67028006]
[1768407879979,9.89200882,147.72,147.68,0.67028006]
[1768407880177,7.42567233,147.72,147.68,0.67028006]
[1768407880388,9.89200882,147.72,147.68,0.67028006]
[1768407880591,22.25200882,147.72,147.68,0.67028006]
[1768407880768,3.12242635,147.72,147.68,7.44164357]
[1768407880969,0.65608986,147.78,147.72,0.67028006]
[1768407881191,16.91636213,147.79,147.72,0.67028006]
[1768407881192,6.76651822,147.79,147.72,0.67028006]
[1768407881409,12.36,147.79,147.73,0.67028006]
[1768407881769,13.01608986,147.79,147.73,0.67028006]
[1768407881992,15.48242635,147.79,147.73,0.67028006]
[1768407882190,15.48242635,147.79,147.74,7.43892768]
[1768407882397,3.12242635,147.78,147.72,7.43939517]
[1768407882690,3.12242635,147.76,147.72,0.67028006]
[1768407882988,3.12242635,147.74,147.7,0.67028006]
[1768407883289,13.01608986,147.74,147.7,0.67028006]
[1768407883493,0.65608986,147.7,147.64,0.67028006]
[1768407883677,2.46633649,147.67,147.64,0.67028006]
[1768407883989,2.46633649,147.67,147.62,1.99393587]
[1768407883990,2.46633649,147.66,147.62,1.99393587]
[1768407884188,2.46633649,147.66,147.62,8.76805892]
[1768407884572,9.89465012,147.67,147.62,8.76805892]
[1768407884976,7.42831363,147.67,147.62,8.76805892]
[1768407885177,9.89465012,147.67,147.62,8.76805892]
[1768407885401,6.94574663,147.67,147.62,8.76805892]
[1768407885701,13.71764047,147.67,147.62,8.76805892]
[1768407886695,13.01608986,147.67,147.62,8.76805892]
[1768407886902,12.36,147.67,147.63,0.67028006]
[1768407887705,13.01608986,147.67,147.63,0.67028006]
[1768407888503,13.01608986,147.67,147.63,7.44380794]
[1768407889494,0.65608986,147.66,147.62,8.0974952]
[1768407889696,19.13189731,147.67,147.62,8.76777526]
[1768407890000,12.36,147.67,147.63,6.77365767]
[1768407890706,12.36,147.67,147.64,0.67028006]
[1768407891700,12.36,147.67,147.64,7.44326028]
[1768407891898,12.36,147.68,147.64,7.44326028]
[1768407892102,6.77052431,147.7,147.65,0.68212311]
[1768407892286,12.36,147.69,147.65,0.68212311]
[1768407893206,12.36,147.69,147.65,7.45446448]